Cogmind - Beta 13 @@@ ROGUE MODE // 2024.03.08 @ 12:06:42 Player: Ferns Result: Destroyed by S-10 Pest with Light Assault Rifle Performance ------------- Evolutions (2) 1000 Regions Visited (5) 1000 Robots Destroyed (39) 195 Value Destroyed (882) 882 Prototype IDs (24) 480 Alien Tech Used (0) 0 Bonus (421) 421 TOTAL SCORE: 3978 Bonus ------- Follower Combat Kills 142 Aligned with FarCom 300 Friendly Fire -21 Cogmind --------- Core Integrity 0/550 Matter 255/300 Energy 100/100 System Corruption 6% Temperature Warning (365) Movement Rolling (90) Location -8/Materials Parts ------- > --- POWER (1) -------- (None) > --- PROPULSION (3) --- Wheel Compact Wheel > --- UTILITY (5) ------ Improved Heat Sink Improved Signal Interpreter Improved Propulsion Shielding > --- WEAPON (2) ------- Heavy Particle Cannon > --- INVENTORY (5) ---- Recoil Stabilizer Decoy Drone Bay AWS/Gauss Peak State ------------ > --- POWER ------------ Deuterium Engine > --- PROPULSION ------- Wheel Wheel Compact Wheel > --- UTILITY ---------- Improved Heat Sink Humpback Improved Signal Interpreter Improved Propulsion Shielding > --- WEAPON ----------- Heavy Particle Cannon Heavy Particle Cannon > --- INVENTORY -------- Deuterium Engine Nuclear Core Light Nuclear Core Light Nuclear Core Light Nuclear Core Light Angular Momentum Engine Improved Heat Sink High-capacity Storage Unit High-capacity Matter Pod Visual Processing Unit Experimental Sensor Array Signal Interpreter 0b10 Alert Chip Recoil Stabilizer ECM Suite Hardened Light Armor Plating Hacking Suite Decoy Drone Bay Chronowheel Heavy Particle Cannon Heavy Particle Cannon Heavy Particle Cannon Heavy Particle Cannon Heavy Particle Cannon Heavy Particle Cannon Heavy Assault Rifle Heavy Assault Rifle AWS/Gauss EMP Blaster EMP Blaster [Rating: 35] Favorites ----------- Power Ion Engine Engine Ion Engine Power Core Light Nuclear Core Propulsion Wheel Wheel Wheel Utility Signal Interpreter Device Improved Heat Sink Storage High-capacity Storage Unit Processor Signal Interpreter Protection Improved Propulsion Shielding Weapon Heavy Assault Rifle Energy Gun Small Laser Energy Cannon Heavy Particle Cannon Ballistic Gun Heavy Assault Rifle Build | -11 -10 -10 -10 -9 -8 ------- Run | Yrd Mat Min Exi Min Mat Slots Evolved 4 | . . . . . 4 Power . | . . . . . . Propulsion 1 | . . . . . 1 Utility 3 | . . . . . 3 Weapon . | . . . . . . Parts Attached 43 | 9 10 1 . 3 20 Power 6 | 1 1 . . . 4 Engine 4 | 1 1 . . . 2 Core 2 | . . . . . 2 Reactor . | . . . . . . Propulsion 11 | 4 3 . . . 4 Treads . | . . . . . . Leg . | . . . . . . Wheel 11 | 4 3 . . . 4 Hover . | . . . . . . Flight . | . . . . . . Utility 16 | 2 3 1 . 1 9 Device 6 | 1 1 . . . 4 Storage 5 | 1 1 1 . 1 1 Processor 2 | . 1 . . . 1 Hackware . | . . . . . . Protection 3 | . . . . . 3 Artifact . | . . . . . . Weapon 10 | 2 3 . . 2 3 Energy Gun 1 | 1 . . . . . Energy Cannon 3 | . . . . . 3 Ballistic Gun 6 | 1 3 . . 2 . Ballistic Cannon . | . . . . . . Launcher . | . . . . . . Special Weapon . | . . . . . . Impact Weapon . | . . . . . . Slashing Weapon . | . . . . . . Piercing Weapon . | . . . . . . Special Melee Weapon . | . . . . . . Unidentified Prototypes 1 | . . . . . 1 Parts Lost 21 | . 1 . . . 20 Power 6 | . . . . . 6 Propulsion 3 | . 1 . . . 2 Utility 5 | . . . . . 5 Weapon 7 | . . . . . 7 Highest Loss Streak 15 | . 1 . . . 15 To Critical Strikes . | . . . . . . Average Slot Usage (%) 95 | . 99 100 100 100 86 Engine 11 | . 14 14 14 14 7 Wheel 27 | . 27 28 28 28 26 Device 5 | . 11 . . . 8 Storage 12 | . 14 14 14 14 10 Processor 9 | . 2 14 14 14 9 Protection 1 | . . . . . 5 Energy Cannon 4 | . . . . . 13 Ballistic Gun 19 | . 24 28 28 28 4 Naked Turns . | . . . . . . Heaviest Build 262 | 13 22 51 51 51 262 Greatest Support 42 | 32 26 26 26 26 42 Greatest Overweight (x) 8 | . 1 1 1 1 8 Average Overweight (x) 1 | . . . 1 1 5 Largest Inventory Capacity 35 | 8 10 20 20 20 35 Average Capacity 20 | 7 8 11 20 20 34 Most Carried 35 | 5 10 12 19 20 35 Average Carried 18 | 2 7 10 14 19 29 Final Capacity 20 | 8 10 20 20 20 5 Final Carried 20 | 4 10 12 19 20 5 Class Distribution -------------------- 67% | Mutant 31% | Hauler-Mutant Dominant Class ---------------- Mutant | -10/Materials Mutant | -10/Mines Mutant | -10/Exiles Mutant | -9/Mines Hauler-Mutant | -8/Materials Resources | -11 -10 -10 -10 -9 -8 ----------- Run | Yrd Mat Min Exi Min Mat Matter Collected 875 | 40 439 30 10 24 332 Remotely . | . . . . . . Salvage Created 1275 | 40 524 31 . . 680 Parts 87 | 5 36 5 . . 41 Haulers Intercepted 2 | . 2 . . . . Recyclers Shooed . | . . . . . . Parts Field Recycled . | . . . . . . Retrieved Matter . | . . . . . . Parts Self-Destructed . | . . . . . . Prevented . | . . . . . . Kills | -11 -10 -10 -10 -9 -8 ------- Run | Yrd Mat Min Exi Min Mat Combat Hostiles Destroyed 25 | . 9 2 . . 14 Guns 12 | . 9 2 . . 1 Cannons 13 | . . . . . 13 Classes Destroyed 9 | 1 7 . . . 1 Worker 3 | . 2 . . . 1 Tunneler 2 | 2 . . . . . Hauler 2 | . 2 . . . . Recycler 2 | . 1 . . . 1 Operator 1 | . 1 . . . . Watcher 4 | . 3 . . . 1 Swarmer 11 | . 6 2 . . 3 Grunt 13 | . 3 . . . 10 Sentry 1 | . . . . . 1 Best Kill Streak 7 | 2 7 1 . . 5 Combat Bots Only 6 | . 6 1 . . 5 Max Kills in Single Turn 2 | 1 2 1 . . 1 Gunslinging 1 | . 1 . . . . Exploded . | . . . . . . Melee . | . . . . . . Uniques/NPCs Destroyed . | . . . . . . Combat | -11 -10 -10 -10 -9 -8 -------- Run | Yrd Mat Min Exi Min Mat Hostile Shots Fired 208 | . 27 8 . . 173 Missed 40 | . 4 3 . . 33 Damage Taken 2364 | . 253 43 . . 2068 Core 619 | . 55 10 . . 554 Absorbed by Shields . | . . . . . . Redirected to Shielding 69 | . . . . . 69 Core Remaining (%) 87 | 100 . . . 74 . Volleys Fired 116 | 5 42 5 . . 64 Largest 2 | 2 2 2 . . 2 Hottest 150 | 60 60 46 . . 150 Shots Fired 234 | 10 84 10 . . 130 Gun 136 | 10 84 10 . . 32 Cannon 98 | . . . . . 98 Launcher . | . . . . . . Special . | . . . . . . Kinetic 129 | 5 82 10 . . 32 Thermal 105 | 5 2 . . . 98 Explosive . | . . . . . . Electromagnetic . | . . . . . . Robot Hit Streak 10 | 3 5 2 . . 10 Robot Miss Streak 6 | 3 4 1 . . 6 Penetration Max . | . . . . . . Secondary Targets 5 | . 4 . . . 1 Max Gunslinging Chain 1 | . 1 . . . 1 Shots Hit Robots 128 | 6 39 5 . . 78 Core Hits 58 | 2 23 2 . . 31 Critical Kills 1 | . . . . . 1 Critical Parts Destroyed 1 | 1 . . . . . Critical Strikes 2 | 1 . . . . 1 Meltdown 1 | . . . . . 1 Destroy 1 | 1 . . . . . Melee Attacks . | . . . . . . Impact . | . . . . . . Slashing . | . . . . . . Piercing . | . . . . . . Sneak Attacks . | . . . . . . Combat Hostiles . | . . . . . . Follow-up Attacks . | . . . . . . Damage Inflicted 2668 | 56 631 81 . . 1900 Guns 1143 | 56 631 81 . . 375 Cannons 1525 | . . . . . 1525 Explosions . | . . . . . . Melee . | . . . . . . Ramming . | . . . . . . Kinetic 1100 | 35 609 81 . . 375 Thermal 1568 | 21 22 . . . 1525 Explosive . | . . . . . . Electromagnetic . | . . . . . . Impact . | . . . . . . Slashing . | . . . . . . Piercing . | . . . . . . Highest Corruption 6 | . . . . . 6 Average Corruption 5 | . . . . . 5 Corruption Purged . | . . . . . . Corruption Blocked . | . . . . . . Effects 12 | . . . . . 12 Message Errors 2 | . . . . . 2 Matter Fused 4 | . . . . . 4 Heat Flow Errors 2 | . . . . . 2 Parts Rejected 1 | . . . . . 1 Data Loss (minor) 1 | . . . . . 1 Misfires 2 | . . . . . 2 Overload Shots . | . . . . . . Overflow Damage . | . . . . . . Projectiles . | . . . . . . Explosions . | . . . . . . Melee . | . . . . . . Knockbacks . | . . . . . . Impact . | . . . . . . Kinetic . | . . . . . . Secondary . | . . . . . . Self-Inflicted Damage . | . . . . . . Shots . | . . . . . . Rammed . | . . . . . . Targets Rammed . | . . . . . . Kicked . | . . . . . . Crushed . | . . . . . . Highest Temperature 723 | 20 20 . . . 723 Average Temperature 144 | 15 6 . . . 160 Received Heat Transfer 1053 | . 90 . . . 963 Effects 19 | . . . . . 19 Shutdowns 1 | . . . . . 1 Energy Bleed 4 | . . . . . 4 Interference 8 | . . . . . 8 Matter Decay 2 | . . . . . 2 Damage (minor) 2 | . . . . . 2 Damage (core) 2 | . . . . . 2 Siege Activations . | . . . . . . Robots Corrupted . | . . . . . . Combat Hostiles . | . . . . . . Parts Fried . | . . . . . . Impact Corruptions . | . . . . . . Robots Melted 1 | . . . . . 1 Combat Hostiles . | . . . . . . Parts Melted 3 | . . . . . 3 Heat Transferred 2357 | 50 50 . . . 2257 Parts Sabotaged . | . . . . . . Parts Stolen . | . . . . . . Parts Stripped . | . . . . . . Power Chain Reactions . | . . . . . . Alert | -11 -10 -10 -10 -9 -8 ------- Run | Yrd Mat Min Exi Min Mat Peak Influence 273 | 10 225 157 . . 273 Initial 87 | . 6 87 . . . Average 77 | 2 90 148 . . 94 Maximum Alert Level 1 | . 1 . . . 1 Low Security (%) 93 | 100 93 100 . 100 88 Level 1 6 | . 6 . . . 11 Level 2 . | . . . . . . Level 3 . | . . . . . . Level 4 . | . . . . . . Level 5 . | . . . . . . High Security . | . . . . . . Max Security . | . . . . . . Squads Dispatched 4 | . . . . . 4 Investigation 1 | . . . . . 1 Extermination . | . . . . . . Reinforcement 3 | . . . . . 3 Assault . | . . . . . . Garrison . | . . . . . . Intercept . | . . . . . . Searches Triggered . | . . . . . . Construction Impeded 2 | . . . . . 2 Haulers Reinforced . | . . . . . . Active Scanning Responses . | . . . . . . Cargo Convoy Interrupts . | . . . . . . Stealth | -11 -10 -10 -10 -9 -8 --------- Run | Yrd Mat Min Exi Min Mat Distress Signals 4 | . 1 . . . 3 Communications Jammed . | . . . . . . Distress Signals . | . . . . . . Times Spotted 56 | . 16 5 . . 35 Peak Tracking Total 9 | . 9 3 . . 7 Tactical Retreats 2 | . . 1 . . 1 Traps | -11 -10 -10 -10 -9 -8 ------- Run | Yrd Mat Min Exi Min Mat Traps Triggered 5 | . 1 . . . 4 Indirectly . | . . . . . . Trap Hack Attempts . | . . . . . . Triggered . | . . . . . . Disarmed . | . . . . . . Reprogrammed . | . . . . . . Reused . | . . . . . . Traps Extracted . | . . . . . . Installed . | . . . . . . Triggered . | . . . . . . Machines | -11 -10 -10 -10 -9 -8 ---------- Run | Yrd Mat Min Exi Min Mat Machines Disabled 2 | . . . . . 2 Max in Single Turn 1 | . . . . . 1 Garrison Access 1 | . . . . . 1 Machines Repaired . | . . . . . . Machines Dismantled . | . . . . . . Machines Sabotaged . | . . . . . . Overloaded Fab Kills . | . . . . . . Hacking | -11 -10 -10 -10 -9 -8 --------- Run | Yrd Mat Min Exi Min Mat Machines Accessed 9 | . 2 . 2 1 4 Terminals 3 | . 1 . . . 2 Fabricators . | . . . . . . Repair Stations . | . . . . . . Recycling Units 2 | . 1 . . . 1 Scanalyzers . | . . . . . . Garrison Access 1 | . . . . . 1 Total Hacks 21 | . 6 . 8 1 6 Successful 16 | . 4 . 8 1 3 Failed 5 | . 2 . . . 3 Catastrophic . | . . . . . . Database Lockouts . | . . . . . . Manual 3 | . 2 . 1 . . Terminals 6 | . 3 . . . 3 Fabricators . | . . . . . . Repair Stations . | . . . . . . Recycling Units 5 | . 3 . . . 2 Scanalyzers . | . . . . . . Garrison Access 1 | . . . . . 1 Terminal Hacks 11 | . 1 . 8 1 1 Record 7 | . . . 7 . . Robot Analysis 1 | . 1 . . . . Open Door 1 | . . . . 1 . Recall Investigation 1 | . . . . . 1 Derelict Proto ID Bank 1 | . . . 1 . . Fabricator Hacks . | . . . . . . Repair Station Hacks . | . . . . . . Recycling Unit Hacks 4 | . 3 . . . 1 Process 1 | . 1 . . . . Report Inventory 1 | . 1 . . . . Retrieve Matter 1 | . 1 . . . . Retrieve Components 1 | . . . . . 1 Scanalyzer . | . . . . . . Garrison Access Hacks 1 | . . . . . 1 Seal Access 1 | . . . . . 1 Unauthorized Hacks . | . . . . . . Terminals . | . . . . . . Fabricators . | . . . . . . Repair Stations . | . . . . . . Recycling Units . | . . . . . . Scanalyzers . | . . . . . . Garrison Access . | . . . . . . Data Cores Recovered 1 | . 1 . . . . Used . | . . . . . . Hacking Detections 3 | . 1 . . . 2 Full Trace Events . | . . . . . . Feedback Events . | . . . . . . Feedback Blocked . | . . . . . . Robot Schematics Acquired . | . . . . . . Robots Built . | . . . . . . Authchips . | . . . . . . Time . | . . . . . . Total Robot Build Rating . | . . . . . . Part Schematics Acquired . | . . . . . . Parts Built . | . . . . . . Authchips . | . . . . . . Time . | . . . . . . Total Part Build Rating . | . . . . . . Parts Repaired . | . . . . . . Time . | . . . . . . Parts Recycled . | . . . . . . Recycled Matter 153 | . 153 . . . . Retrieved Matter 153 | . 153 . . . . Retrieved Components 10 | . . . . . 10 Parts Scanalyzed . | . . . . . . Part Schematics Acquired . | . . . . . . Parts Damaged . | . . . . . . Bothacking | -11 -10 -10 -10 -9 -8 ------------ Run | Yrd Mat Min Exi Min Mat Used RIF Installer . | . . . . . . Robots Hacked . | . . . . . . Non-combat . | . . . . . . Combat . | . . . . . . Robot Hacks Applied . | . . . . . . Relay Couplers Released . | . . . . . . Fabnet Peak Effective % . | . . . . . . Robots Rewired . | . . . . . . Allies Hacked . | . . . . . . Hacks Repelled . | . . . . . . Allies | -11 -10 -10 -10 -9 -8 -------- Run | Yrd Mat Min Exi Min Mat Total Allies 5 | . . . . 5 . Largest Group 5 | . . . . 5 5 Highest-Rated Group 92 | . . . . 92 92 Highest-Rated Ally 31 | . . . . 31 31 Total Orders . | . . . . . . Ally Attacks 31 | . . . . . 31 Total Damage 430 | . . . . . 430 Kills 5 | . . . . . 5 Allies Corrupted . | . . . . . . Allies Melted . | . . . . . . Intel | -11 -10 -10 -10 -9 -8 ------- Run | Yrd Mat Min Exi Min Mat Robot Analysis Total 1 | . 1 . . . . Derelict Logs Recovered 4 | . . 2 . 2 . Drone Launches . | . . . . . . Drone Recoveries . | . . . . . . Exploration | -11 -10 -10 -10 -9 -8 ------------- Run | Yrd Mat Min Exi Min Mat Turns Passed 2901 | 69 688 304 345 539 956 Spaces Moved 2084 | 37 551 292 324 488 392 Core 4 | 4 . . . . . Treads . | . . . . . . Legs . | . . . . . . Wheels 2080 | 33 551 292 324 488 392 Hover . | . . . . . . Flight . | . . . . . . Fastest Speed 50 | 50 90 90 105 105 90 Average Speed 112 | 93 90 92 105 105 175 Slowest Speed 210 | 100 115 105 105 105 210 Overloaded Moves . | . . . . . . Propulsion Burnouts . | . . . . . . Robots Hopped . | . . . . . . Cave-ins Triggered . | . . . . . . Exploration Rate (%) 49 | 5 46 55 71 87 33 Regions Visited 5 Branch Regions 3 Pre-discovered Areas 3 | . . 2 . 1 . Known Exits Taken 4 | . 1 1 1 1 . Unknown Exits Taken 1 | 1 . . . . . Scrap Searched 3 | . . . . 3 . Spaces Dug . | . . . . . . Terrain Destroyed 33 | . . . . . 33 Melee . | . . . . . . Projectile 33 | . . . . . 33 AOE . | . . . . . . Terrain Rammed . | . . . . . . Walls Destroyed . | . . . . . . Machines Disabled . | . . . . . . Actions | -11 -10 -10 -10 -9 -8 --------- Run | Yrd Mat Min Exi Min Mat Total 2417 | 61 664 316 328 516 532 Wait 67 | . 25 13 . 16 13 Move 2079 | 36 550 291 323 487 392 Hop . | . . . . . . Pick Up 82 | 11 23 4 5 5 34 Fast Attach . | . . . . . . Attach 23 | 7 3 . . . 13 Detach . | . . . . . . Swap 20 | 2 7 1 . 3 7 Drop 30 | . 14 2 . 5 9 Fire 116 | 5 42 5 . . 64 Melee . | . . . . . . Ram . | . . . . . . Kick . | . . . . . . Crush . | . . . . . . Escape Stasis . | . . . . . . Rewire . | . . . . . . Trap . | . . . . . . Miscellaneous . | . . . . . . Route ------- -11/Scrapyard -10/Materials (discovered 3 exits: *Mat / *Min x2) -10/Mines (discovered 2 exits: *Mat / *Exi) -10/Exiles -9/Mines -8/Materials History --------- Turn | Location | Event 13 | -11/Scrapyard | Discovered new exit (range 16) 70 | -11/Scrapyard | Entered Materials 281 | -10/Materials | Discovered new exit (range 5) 312 | -10/Materials | Build established: Mutant 537 | -10/Materials | Discovered new exit (range 16) 652 | -10/Materials | Identified exit to Materials 740 | -10/Materials | Discovered new exit (range 14) 755 | -10/Materials | Identified exit to Mines 758 | -10/Materials | Entered Mines 834 | -10/Mines | Learned location of Zion (-7) 837 | -10/Mines | Learned location of Storage (-9) 967 | -10/Mines | Discovered exit to Materials (range 6) 1056 | -10/Mines | Deemed a non-threat by the Exiles lab entrance 1056 | -10/Mines | Discovered new exit (range 5) 1060 | -10/Mines | Identified exit to Exiles 1062 | -10/Mines | Entered Exiles 1089 | -10/Exiles | Met 8R-AWN 1104 | -10/Exiles | Met EX-HEX 1136 | -10/Exiles | Met EX-BIN 1151 | -10/Exiles | Aligned with FarCom system 1152 | -10/Exiles | Given EX-Vault access code 1176 | -10/Exiles | Opened EX-Vault 1181 | -10/Exiles | Found 0b10 Alert Chip 1184 | -10/Exiles | Found Chronowheel 1188 | -10/Exiles | Found AWS/Gauss 1221 | -10/Exiles | Warned to stay clear of 0b10 Research branches 1251 | -10/Exiles | Met EX-DEC 1395 | -10/Exiles | Discovered new exit (range 14) 1406 | -10/Exiles | Identified exit to Mines 1407 | -10/Exiles | Stole three prototypes: 0b10 Alert Chip, Chronowheel, AWS/Gauss 1407 | -10/Exiles | Entered Mines 1480 | -9/Mines | Assisted by bots powering up and referring to "LRC-V3" 1496 | -9/Mines | Met a Derelict bent on vengeance 1784 | -9/Mines | Found the Drone Emporium 1792 | -9/Mines | Found Prototype Device 1844 | -9/Mines | Found a damaged Exp. Sensor Array with a note attached 1848 | -9/Mines | Found Prototype Device 1868 | -9/Mines | Learned Materials terminal intel 1901 | -9/Mines | Discovered new exit (range 5) 1904 | -9/Mines | Identified exit to Materials 1946 | -9/Mines | Entered Materials 1946 | -8/Materials | Accompanied by 5 allies 1946 | -8/Materials | Evolved 4 slots: Propulsion x1, Utility x3 1947 | -8/Materials | Loaded intel: 12 terminal locations 1951 | -8/Materials | Led the pair of lost Derelicts to an unsafe place 1998 | -8/Materials | Identified Exp. Sensor Array 2112 | -8/Materials | Lost 4 allies 2209 | -8/Materials | Lost 4 parts (1p1n1u1w) 2321 | -8/Materials | Build established: Hauler-Mutant 2867 | -8/Materials | Core integrity fell below 50% 2893 | -8/Materials | Core integrity fell below 20% 2902 | -8/Materials | Destroyed by S-10 Pest with Light Assault Rifle Last Messages --------------- 02890_ Lgt. Nuclear Core crushed and broken. 02890_ Deuterium Engine crushed and broken. 02890_ Hacking Suite crushed and broken. 02890_ Hcp. Matter Pod crushed and broken. 02890_ Hvy. Particle Cannon crushed and broken. 02890_ Hrd. Light Armor Plating crushed and broken. 02890_ Hvy. Assault Rifle crushed and broken. 02890_ EMP Blaster crushed and broken. 02891_ Extracted 49 energy. 02892_ Overheating: System interference. 02892_ Imp. Signal Interpreter temporarily disabled. 02893_ Overheating: Core damaged (-93). 02893_ Acquired 41 matter. 02895_ Overheating: Energy bleed (-21). 02896_ Overheating: Core damaged (-82). 02899_ Overheating: Imp. Signal Interpreter damaged (-10). 02901_ Hvy. Particle Cannon destroyed. Map ----- +----------------------------------------------------+ | ?????????????????????????????????????????????????? | | ?????????????????????????????????????????????????? | | ?????????????????????????????????????????????????? | | ?????????????????????????????????????????????????? | | ?????????????????????????????????????????????????? | | ?????????????????????????????????????????????????? | | ?????????????????????????????????????????????????? | | ?????????????????????????????????????????????????? | | ?????????????????????????????????????????????????? | | ?????????????????????????????????????????????????? | | ????????????????T????? ????????????????????????? | | ?????????????????????# #???????????????????????? | | ?????????????????????+ +???????????????????????? | | ?????????????????????# #???????????????????????? | | ?????????????????????# #???????????????????????? | | ?????????????????????# #???????????????????????? | | ?????????????????????# #???????????????????????? | | ?????????????###?#???# #???????????????????????? | | ?????????????# ?*???# #???????????????????????? | | ???????###?#?? ?*???+ ##########+###??????????? | | ???????? ? ?] ? ?w?#a ??????????? | | ???????? ? # ? ???# u ??????????? | | ???????? #######?# ?????????????? | | ????????? # ### #????????????????? | | ??????????"" # ] #????????????????? | | ???????????" + !** s @ +?""?????????????? | | ???????????? #]=!g!b] u #?""?????????????? | | ?????????????#]==*g#####+###+## #?T"?????????????? | | ?????????????##[%*##??????????????""?????????????? | | ?????????????##[%!##?T????????????""?????????????? | | ?????????????##===#??????????????????????????????? | | ?????????????##!g!#??????????Y??????Y????????????? | | ??????????????#[*!#??????????????????????????????? | | ??????????????# !*#??????????????????????????????? | | ??????????????# !#??????????????????????????????? | | ??????????????# #??????????????????????????????? | | ??????????????# #??????????????????????????????? | | ??????????????# #???????????#??????????????????? | | ????????? [ w #??????????? ?????????????????? | | ???????# # #???????????? ??????T?????????? | | ???????######## #???????????? ????????????????? | | ??????????????# #????????????# ????????????????? | | ??????????##### #????????????#/#######?????????? | | ??????????+ % #???? """????? ??????????? | | ??????????##### # """???""" """ "?????????? | | ?????????????## %[+ #?""" """ ??????????? | | ??????????????# # #?""" "" ??????????? | | ??????????????#[ # #?? ???????????? | | ?????????????##% ###########???? ???????????? | | #####+######## ################+###?????##### | +----------------------------------------------------+ Best States ------------- Heat Dissipation 59 Energy Generation 14 Energy Capacity 275 Matter Stores 300 Matter Capacity 300 Sight Range 16 Robot Scan Range 20 Terrain Scan Density 10 Armor Coverage 225 Propulsion Shielding 66 Evasion (%) 42 Item Schematics ----------------- None Robot Schematics ------------------ None Fabricated ------------ Nothing Alien Tech Used ----------------- None Achievements -------------- Packrat Challenges ------------ None Game ------ Seed OmegaHoverTriangulator Manual? 0 Play Time 00:30:31 Cumulative 15.2 hours Start 2024.03.08 @ 11:37:47 End 2024.03.08 @ 12:06:42 Sessions 1 Manual Loads 0 Difficulty Rogue Special Mode None Game No. 10 Rogue 4 Adventurer 6 Explorer 0 Win Type - Total 0 Types 0/0/0/0/0/0/0/0/0 Lore% 10 Gallery% 25 Achievement% 21 Wizard Run 0 Options --------- Layout 1 ASCII 0 Keyboard 0 Movement Mouse Keybinds 0 Fullscreen 2 Font 18/SmallcapsGlow Map View 51x43 Zoom Use 0% Tactical HUD 1 Map Filters NONE Filters NONE Steam 0 RUN: 042dd315-b65f-4d37-b789-8af99641c77f